[Event "25th European Club Cup Women 2021"]
[Site "Struga"]
[Date "2021.09.22"]
[Round "5.8"]
[White "Paehtz, Elisabeth"]
[Black "Manova, Ivana"]
[Result "1-0"]
[ECO "C77"]
[WhiteElo "2465"]
[BlackElo "1779"]
[Annotator "ChessBase"]
[PlyCount "91"]
[EventDate "2021.09.18"]
[EventType "team-tourn"]
[EventCountry "MKD"]
[SourceTitle "playchess.com"]
[Source "ChessBase"]
[SourceQuality "1"]
[TimeControl "40/5400+30:1800+30"]

1. e4 {[%emt 0:00:03]} e5 {[%emt 0:00:32]} 2. Nf3 {[%emt 0:00:03]} Nc6 {
[%emt 0:00:06]} 3. Bb5 {[%emt 0:00:03]} a6 {[%emt 0:00:15]} 4. Ba4 {[%emt 0:00:
04]} Nf6 {[%emt 0:00:04]} 5. d3 {[%emt 0:00:46]} b5 {[%emt 0:01:49]} 6. Bb3 {
[%emt 0:00:09]} Be7 {[%emt 0:00:19]} 7. a4 {[%emt 0:04:55]} Rb8 {[%emt 0:05:04]
} 8. axb5 {[%emt 0:03:21]} axb5 {[%emt 0:00:10]} 9. Nc3 {[%emt 0:00:04]} d6 {
[%emt 0:02:57]} 10. Be3 {[%emt 0:07:15]} Be6 {[%emt 0:05:44]} 11. Nd2 {[%emt 0:
11:45]} d5 {[%emt 0:13:44]} 12. Bg5 {[%emt 0:15:06]} d4 {[%emt 0:04:53]} 13.
Ne2 {[%emt 0:00:04]} Nd7 {[%emt 0:01:21]} 14. Bxe6 {[%emt 0:01:42]} fxe6 {
[%emt 0:03:04]} 15. Bxe7 {[%emt 0:01:47]} Qxe7 {[%emt 0:01:12]} 16. O-O {
[%emt 0:00:38]} O-O {[%emt 0:03:17]} 17. Nb3 {[%emt 0:03:42]} Rf6 {[%emt 0:08:
55]} 18. Qd2 {[%emt 0:00:52]} Nc5 {[%emt 0:15:43]} 19. Na5 {[%emt 0:01:11]}
Nxa5 {[%emt 0:02:10]} 20. Rxa5 {[%emt 0:00:49]} b4 {[%emt 0:01:21]} 21. f4 {
[%emt 0:04:52]} Qd6 {[%emt 0:04:52]} 22. b3 {[%emt 0:07:10]} Nd7 {[%emt 0:01:
31]} 23. fxe5 {[%emt 0:03:34]} Rxf1+ {[%emt 0:00:13]} 24. Kxf1 {[%emt 0:00:03]}
Nxe5 {[%emt 0:00:08]} 25. Kg1 {[%emt 0:03:02]} Ng4 {[%emt 0:04:09]} 26. Qf4 {
[%emt 0:00:07]} Qb6 {[%emt 0:08:45]} 27. Rg5 {[%emt 0:00:27]} Ne3 {[%emt 0:00:
18]} 28. Qe5 {[%emt 0:02:59]} g6 {[%emt 0:00:06]} 29. h4 {[%emt 0:09:02]} Kf7 {
[%emt 0:09:42]} 30. h5 {[%emt 0:08:30]} Qd6 {[%emt 0:00:36]} 31. Nxd4 {[%emt 0:
01:08]} Rd8 {[%emt 0:00:14]} 32. Nxe6 {[%emt 0:04:17]} Qxe5 {[%emt 0:02:34]}
33. Nxd8+ {[%emt 0:01:25]} Kf6 {[%emt 0:00:07]} 34. Rxe5 {[%emt 0:00:02]} Kxe5
{[%emt 0:00:02]} 35. hxg6 {[%emt 0:00:38]} hxg6 {[%emt 0:00:04]} 36. Nc6+ {
[%emt 0:00:06]} Kd6 {[%emt 0:00:22]} 37. Nxb4 {[%emt 0:00:04]} c5 {[%emt 0:00:
07]} 38. Kf2 {[%emt 0:04:03]} Nd1+ {[%emt 0:00:05]} 39. Ke1 {[%emt 0:00:04]}
Ne3 {[%emt 0:00:06]} 40. Ke2 {[%emt 0:00:00]} Nxg2 {[%emt 0:00:00]} 41. Nd5 {
[%emt 0:00:45]} g5 {[%emt 0:04:47]} 42. Kf2 {[%emt 0:00:34]} Nh4 {[%emt 0:00:
16]} 43. Kg3 {[%emt 0:01:31]} Ng6 {[%emt 0:03:01]} 44. Kg4 {[%emt 0:02:14]}
Ne5+ {[%emt 0:00:51]} 45. Kxg5 {[%emt 0:00:05]} Nf3+ {[%emt 0:00:04]} 46. Kf6 {
[%emt 0:00:16]} 1-0

[Event "25th European Club Cup Women 2021"]
[Site "Struga"]
[Date "2021.09.22"]
[Round "5.9"]
[White "Peycheva, Gergana"]
[Black "Saduakassova, Dinara"]
[Result "1/2-1/2"]
[ECO "E08"]
[WhiteElo "2331"]
[BlackElo "2489"]
[Annotator "ChessBase"]
[PlyCount "31"]
[EventDate "2021.09.18"]
[EventType "team-tourn"]
[EventCountry "MKD"]
[SourceTitle "playchess.com"]
[Source "ChessBase"]
[SourceQuality "1"]
[TimeControl "40/5400+30:1800+30"]

1. d4 {[%emt 0:00:03]} Nf6 {[%emt 0:00:07]} 2. c4 {[%emt 0:00:21]} e6 {[%emt 0:
00:06]} 3. g3 {[%emt 0:00:22]} d5 {[%emt 0:00:06]} 4. Nf3 {[%emt 0:00:53]} Bb4+
{[%emt 0:00:14]} 5. Bd2 {[%emt 0:00:22]} Be7 {[%emt 0:00:05]} 6. Bg2 {[%emt 0:
00:39]} O-O {[%emt 0:00:19]} 7. O-O {[%emt 0:00:48]} c6 {[%emt 0:00:21]} 8. Qc2
{[%emt 0:01:06]} b6 {[%emt 0:00:33]} 9. Rd1 {[%emt 0:01:40]} Nbd7 {[%emt 0:01:
20]} 10. Bf4 {[%emt 0:00:45]} Bb7 {[%emt 0:00:15]} 11. Ne5 {[%emt 0:01:43]} Nh5
{[%emt 0:00:11]} 12. Bd2 {[%emt 0:01:33]} Nhf6 {[%emt 0:00:08]} 13. Bf4 {
[%emt 0:00:06]} Nh5 {[%emt 0:00:52]} 14. Bd2 {[%emt 0:00:09]} Nhf6 {[%emt 0:00:
07]} 15. Bf4 {[%emt 0:00:08]} Nh5 {[%emt 1:33:16]} 16. Bd2 1/2-1/2

[Event "25th European Club Cup Women 2021"]
[Site "Struga"]
[Date "2021.09.22"]
[Round "5.11"]
[White "Djukic, Sandra"]
[Black "Maltsevskaya, Aleksandra"]
[Result "0-1"]
[ECO "E70"]
[WhiteElo "2127"]
[BlackElo "2407"]
[Annotator "NA"]
[PlyCount "82"]
[EventDate "2021.09.18"]
[EventType "team-tourn"]
[EventCountry "MKD"]
[SourceTitle "playchess.com"]
[Source "ChessBase"]
[SourceQuality "1"]
[TimeControl "40/5400+30:1800+30"]

1. d4 {[%emt 0:00:20]} Nf6 {[%emt 0:00:07]} 2. c4 {[%emt 0:00:10]} g6 {[%emt 0:
00:07]} 3. Nc3 {[%emt 0:00:06]} Bg7 {[%emt 0:00:06]} 4. e4 {[%emt 0:00:04]} d6
{[%emt 0:00:05]} 5. Bd3 {[%emt 0:00:34]} Nc6 {[%emt 0:08:39]} 6. Nge2 {[%emt 0:
03:24]} e5 {[%emt 0:02:59]} 7. d5 {[%emt 0:00:07]} Nd4 {[%emt 0:02:26]} 8. Nxd4
{[%emt 0:00:14]} exd4 {[%emt 0:00:05]} 9. Ne2 {[%emt 0:00:05]} O-O {[%emt 0:00:
38]} 10. O-O {[%emt 0:07:40]} Re8 {[%emt 0:01:57]} 11. f3 {[%emt 0:20:41]} c5 {
[%emt 0:06:54]} 12. Bg5 {[%emt 0:01:32]} h6 {[%emt 0:05:00]} 13. Bh4 {[%emt 0:
04:42]} a6 {[%emt 0:06:16]} 14. Kh1 {[%emt 0:10:05]} Bd7 {[%emt 0:04:17]} 15.
Qd2 {[%emt 0:20:18]} Nxe4 {[%emt 0:03:06]} 16. Qf4 {[%emt 0:07:13]} Nf6 {
[%emt 0:06:41]} 17. Qxd6 {[%emt 0:03:01]} g5 {[%emt 0:01:31]} 18. Be1 {[%emt 0:
06:52]} Rc8 {[%emt 0:04:20]} 19. Qg3 {[%emt 0:02:26]} b5 {[%emt 0:05:40]} 20.
b3 {[%emt 0:03:11]} Re3 {[%emt 0:01:39]} 21. Rd1 {[%emt 0:02:41]} bxc4 {
[%emt 0:00:11]} 22. bxc4 {[%emt 0:02:50]} Qe7 {[%emt 0:02:24]} 23. Nc1 {
[%emt 0:01:44]} Nh5 {[%emt 0:03:58]} 24. Qf2 {[%emt 0:00:05]} Nf4 {[%emt 0:00:
04]} 25. Ba5 {[%emt 0:02:19]} Re8 {[%emt 0:03:00]} 26. Rde1 {[%emt 0:00:25]}
Qd6 {[%emt 0:02:24]} 27. Be4 {[%emt 0:00:22]} f5 {[%emt 0:00:42]} 28. Bc2 {
[%emt 0:00:46]} Nh5 {[%emt 0:02:53]} 29. Bd2 {[%emt 0:00:30]} f4 {[%emt 0:01:
03]} 30. Be4 {[%emt 0:00:27]} Ng3+ {[%emt 0:00:44]} 31. Kg1 {[%emt 0:00:34]}
Nxe4 {[%emt 0:01:01]} 32. fxe4 {[%emt 0:00:04]} R3xe4 {[%emt 0:00:05]} 33. Rxe4
{[%emt 0:00:54]} Rxe4 {[%emt 0:00:06]} 34. Re1 {[%emt 0:00:15]} Qg6 {[%emt 0:
01:51]} 35. Nb3 {[%emt 0:00:15]} Bf8 {[%emt 0:01:09]} 36. Qf3 {[%emt 0:00:59]}
Rxe1+ {[%emt 0:01:52]} 37. Bxe1 {[%emt 0:00:04]} Bd6 {[%emt 0:01:09]} 38. Qe2 {
[%emt 0:00:45]} g4 {[%emt 0:00:23]} 39. Nd2 {[%emt 0:00:29]} d3 {[%emt 0:03:52]
} 40. Qf2 {[%emt 0:00:00]} Kh7 {[%emt 0:00:00]} 41. Qh4 {[%emt 0:00:58]} Qe8 {
[%emt 0:05:00]} 0-1

[Event "25th European Club Cup Women 2021"]
[Site "Struga"]
[Date "2021.09.22"]
[Round "5.12"]
[White "Solozhenkina, Elizaveta"]
[Black "Trajkovska, Sanja"]
[Result "1-0"]
[ECO "B90"]
[WhiteElo "2311"]
[BlackElo "1968"]
[Annotator "NA"]
[PlyCount "59"]
[EventDate "2021.09.18"]
[EventType "team-tourn"]
[EventCountry "MKD"]
[SourceTitle "playchess.com"]
[Source "ChessBase"]
[SourceQuality "1"]
[TimeControl "40/5400+30:1800+30"]

1. e4 {[%emt 0:00:03]} c5 {[%emt 0:00:07]} 2. Nf3 {[%emt 0:00:05]} d6 {[%emt 0:
00:14]} 3. d4 {[%emt 0:00:09]} cxd4 {[%emt 0:00:07]} 4. Nxd4 {[%emt 0:00:05]}
Nf6 {[%emt 0:00:05]} 5. Nc3 {[%emt 0:00:14]} a6 {[%emt 0:00:12]} 6. f3 {
[%emt 0:00:09]} e5 {[%emt 0:00:47]} 7. Nb3 {[%emt 0:00:13]} Be6 {[%emt 0:00:28]
} 8. Be3 {[%emt 0:00:12]} Nc6 {[%emt 0:00:50]} 9. Qd2 {[%emt 0:00:50]} Be7 {
[%emt 0:00:31]} 10. O-O-O {[%emt 0:07:06]} O-O {[%emt 0:05:30]} 11. Kb1 {
[%emt 0:06:52]} b5 {[%emt 0:06:48]} 12. g4 {[%emt 0:03:59]} Re8 {[%emt 0:18:40]
} 13. Nd5 {[%emt 0:10:53]} Bxd5 {[%emt 0:09:37]} 14. exd5 {[%emt 0:00:07]} Na7
{[%emt 0:04:09]} 15. c4 {[%emt 0:07:02]} Nd7 {[%emt 0:10:57]} 16. Na5 {[%emt 0:
05:16]} Nb6 {[%emt 0:04:09]} 17. c5 {[%emt 0:12:07]} dxc5 {[%emt 0:09:41]} 18.
d6 {[%emt 0:00:15]} Bf8 {[%emt 0:00:48]} 19. Nb7 {[%emt 0:09:20]} Qd7 {[%emt 0:
03:08]} 20. Nxc5 {[%emt 0:01:06]} Qc6 {[%emt 0:01:54]} 21. Ne4 {[%emt 0:06:57]}
Nc4 {[%emt 0:04:52]} 22. Bxc4 {[%emt 0:00:48]} bxc4 {[%emt 0:00:13]} 23. Qd5 {
[%emt 0:05:36]} Qxd5 {[%emt 0:11:27]} 24. Rxd5 {[%emt 0:00:07]} Nb5 {[%emt 0:
01:22]} 25. a4 {[%emt 0:03:52]} Na7 {[%emt 0:01:00]} 26. d7 {[%emt 0:04:11]}
Red8 {[%emt 0:00:31]} 27. Bb6 {[%emt 0:00:05]} Nc6 {[%emt 0:00:38]} 28. Bxd8 {
[%emt 0:00:04]} Rxd8 {[%emt 0:00:05]} 29. Rc1 {[%emt 0:00:06]} f6 {[%emt 0:01:
39]} 30. Rxc4 {[%emt 0:17:41]} 1-0

[Event "25th European Club Cup Women 2021"]
[Site "Struga"]
[Date "2021.09.22"]
[Round "5.14"]
[White "Abdumalik, Zhansaya"]
[Black "Atalik, Ekaterina"]
[Result "*"]
[ECO "B10"]
[WhiteElo "2502"]
[BlackElo "2429"]
[Annotator "ChessBase"]
[PlyCount "69"]
[EventDate "2021.09.18"]
[EventType "team-tourn"]
[EventCountry "MKD"]
[SourceTitle "playchess.com"]
[Source "ChessBase"]
[SourceQuality "1"]
[TimeControl "40/5400+30:1800+30"]

1. e4 {[%emt 0:00:03]} c6 {[%emt 0:00:13]} 2. Nf3 {[%emt 0:00:07]} d5 {[%emt 0:
00:07]} 3. d3 {[%emt 0:00:03]} Qc7 {[%emt 0:00:44]} 4. exd5 {[%emt 0:00:15]}
cxd5 {[%emt 0:00:12]} 5. c4 {[%emt 0:00:06]} Nf6 {[%emt 0:01:28]} 6. Nc3 {
[%emt 0:00:07]} e6 {[%emt 0:00:59]} 7. g3 {[%emt 0:00:09]} a6 {[%emt 0:01:01]}
8. Bf4 {[%emt 0:02:42]} Bd6 {[%emt 0:02:00]} 9. Bxd6 {[%emt 0:01:42]} Qxd6 {
[%emt 0:00:07]} 10. Bg2 {[%emt 0:00:17]} O-O {[%emt 0:04:12]} 11. O-O {[%emt 0:
01:58]} Nc6 {[%emt 0:02:34]} 12. a3 {[%emt 0:05:27]} d4 {[%emt 0:02:00]} 13.
Nb1 {[%emt 0:02:57]} a5 {[%emt 0:01:58]} 14. Nbd2 {[%emt 0:02:14]} e5 {[%emt 0:
02:22]} 15. Re1 {[%emt 0:05:47]} Re8 {[%emt 0:05:21]} 16. Qc2 {[%emt 0:04:37]}
Bf5 {[%emt 0:05:12]} 17. Ng5 {[%emt 0:06:23]} Rac8 {[%emt 0:09:46]} 18. Rab1 {
[%emt 0:06:51]} b6 {[%emt 0:05:48]} 19. Nge4 {[%emt 0:04:38]} Nxe4 {[%emt 0:03:
17]} 20. Nxe4 {[%emt 0:00:09]} Bxe4 {[%emt 0:00:39]} 21. Bxe4 {[%emt 0:00:33]}
g6 {[%emt 0:00:07]} 22. b4 {[%emt 0:06:28]} axb4 {[%emt 0:00:16]} 23. axb4 {
[%emt 0:00:05]} Kg7 {[%emt 0:04:41]} 24. Qa4 {[%emt 0:07:29]} Ne7 {[%emt 0:03:
58]} 25. Qb5 {[%emt 0:03:25]} Qc7 {[%emt 0:09:46]} 26. Ra1 {[%emt 0:05:58]} Nf5
{[%emt 0:01:07]} 27. Bg2 {[%emt 0:02:12]} Nd6 {[%emt 0:01:56]} 28. Qd5 {
[%emt 0:02:00]} Rcd8 {[%emt 0:06:11]} 29. Ra6 {[%emt 0:05:39]} Re6 {[%emt 0:02:
56]} 30. Rea1 {[%emt 0:04:02]} Nc8 {[%emt 0:00:48]} 31. Qb5 {[%emt 0:01:42]} f5
{[%emt 0:04:04]} 32. c5 {[%emt 0:04:18]} Kf6 {[%emt 0:01:16]} 33. cxb6 {
[%emt 0:03:00]} Nxb6 {[%emt 0:01:29]} 34. Ra7 {[%emt 0:01:05]} Qc3 {[%emt 0:00:
13]} 35. R1a6 {[%emt 0:01:08]} *

[Event "25th European Club Cup Women 2021"]
[Site "Struga"]
[Date "2021.09.22"]
[Round "5.15"]
[White "Bulmaga, Irina"]
[Black "Muzychuk, Mariya"]
[Result "1/2-1/2"]
[ECO "B22"]
[WhiteElo "2407"]
[BlackElo "2540"]
[Annotator "ChessBase"]
[PlyCount "90"]
[EventDate "2021.09.18"]
[EventType "team-tourn"]
[EventCountry "MKD"]
[SourceTitle "playchess.com"]
[Source "ChessBase"]
[SourceQuality "1"]
[TimeControl "40/5400+30:1800+30"]

1. e4 {[%emt 0:00:04]} c5 {[%emt 0:00:04]} 2. c3 {[%emt 0:00:06]} Nf6 {[%emt 0:
00:38]} 3. e5 {[%emt 0:00:08]} Nd5 {[%emt 0:00:02]} 4. Nf3 {[%emt 0:00:09]} Nc6
{[%emt 0:01:01]} 5. Bc4 {[%emt 0:00:08]} Nb6 {[%emt 0:00:29]} 6. Bb3 {[%emt 0:
00:08]} d5 {[%emt 0:00:31]} 7. exd6 {[%emt 0:00:14]} Qxd6 {[%emt 0:00:03]} 8.
O-O {[%emt 0:00:40]} Bf5 {[%emt 0:02:22]} 9. d4 {[%emt 0:03:32]} cxd4 {[%emt 0:
00:30]} 10. Nxd4 {[%emt 0:03:42]} Nxd4 {[%emt 0:00:35]} 11. cxd4 {[%emt 0:00:
30]} e6 {[%emt 0:00:22]} 12. Nc3 {[%emt 0:02:01]} Be7 {[%emt 0:16:16]} 13. Qf3
{[%emt 0:09:01]} Qd7 {[%emt 0:14:09]} 14. d5 {[%emt 0:04:34]} e5 {[%emt 0:01:
00]} 15. Re1 {[%emt 0:13:25]} O-O {[%emt 0:11:50]} 16. Rxe5 {[%emt 0:03:43]}
Bg4 {[%emt 0:00:20]} 17. Qd3 {[%emt 0:01:38]} Rfd8 {[%emt 0:08:31]} 18. Bd2 {
[%emt 0:14:11]} Bf6 {[%emt 0:05:31]} 19. Ree1 {[%emt 0:00:36]} Rac8 {[%emt 0:
06:01]} 20. Qg3 {[%emt 0:05:43]} Nc4 {[%emt 0:06:44]} 21. Bxc4 {[%emt 0:09:17]}
Rxc4 {[%emt 0:00:03]} 22. h3 {[%emt 0:04:02]} Bf5 {[%emt 0:00:58]} 23. Bg5 {
[%emt 0:00:44]} Bxc3 {[%emt 0:05:15]} 24. bxc3 {[%emt 0:00:03]} Rdc8 {[%emt 0:
00:08]} 25. Re7 {[%emt 0:05:15]} Qxd5 {[%emt 0:01:46]} 26. Rae1 {[%emt 0:00:27]
} Re4 {[%emt 0:05:13]} 27. R1xe4 {[%emt 0:16:55]} Bxe4 {[%emt 0:00:06]} 28. Bf6
{[%emt 0:01:45]} Bg6 {[%emt 0:05:19]} 29. Bd4 {[%emt 0:01:24]} f6 {[%emt 0:01:
20]} 30. h4 {[%emt 0:00:23]} a6 {[%emt 0:01:06]} 31. Qg4 {[%emt 0:00:53]} Rd8 {
[%emt 0:01:59]} 32. h5 {[%emt 0:00:20]} Qxh5 {[%emt 0:02:32]} 33. Qxh5 {
[%emt 0:00:13]} Bxh5 {[%emt 0:00:04]} 34. Rxb7 {[%emt 0:00:06]} Be2 {[%emt 0:
02:02]} 35. a4 {[%emt 0:01:21]} Rd5 {[%emt 0:00:59]} 36. Re7 {[%emt 0:00:36]}
Bd1 {[%emt 0:00:46]} 37. Ra7 {[%emt 0:00:29]} Ra5 {[%emt 0:00:51]} 38. f4 {
[%emt 0:00:18]} Rxa4 {[%emt 0:01:27]} 39. Ra8+ {[%emt 0:00:03]} Kf7 {[%emt 0:
00:04]} 40. f5 {[%emt 0:00:00]} h5 {[%emt 0:00:00]} 41. Ra7+ {[%emt 0:01:03]}
Kg8 {[%emt 0:00:48]} 42. Ra8+ {[%emt 0:00:45]} Kh7 {[%emt 0:00:05]} 43. Ra7 {
[%emt 0:00:06]} Kg8 {[%emt 0:11:44]} 44. Ra8+ {[%emt 0:00:28]} Kh7 {[%emt 0:00:
14]} 45. Ra7 {[%emt 0:00:07]} Kg8 {[%emt 0:00:03]} 1/2-1/2

[Event "25th European Club Cup Women 2021"]
[Site "Struga"]
[Date "2021.09.23"]
[Round "6.1"]
[White "Bivol, Alina"]
[Black "Muzychuk, Anna"]
[Result "1/2-1/2"]
[ECO "C48"]
[WhiteElo "2385"]
[BlackElo "2534"]
[Annotator "ChessBase"]
[PlyCount "53"]
[EventDate "2021.09.18"]
[EventType "team-tourn"]
[EventCountry "MKD"]
[SourceTitle "playchess.com"]
[Source "ChessBase"]
[SourceQuality "1"]
[TimeControl "40/5400+30:1800+30"]

1. e4 {[%emt 0:00:05]} e5 {[%emt 0:00:08]} 2. Nf3 {[%emt 0:00:06]} Nc6 {
[%emt 0:00:08]} 3. Nc3 {[%emt 0:00:06]} Nf6 {[%emt 0:00:25]} 4. Bb5 {[%emt 0:
00:05]} Nd4 {[%emt 0:00:51]} 5. Nxd4 {[%emt 0:00:25]} exd4 {[%emt 0:00:09]} 6.
e5 {[%emt 0:00:03]} dxc3 {[%emt 0:01:32]} 7. exf6 {[%emt 0:00:08]} Qxf6 {
[%emt 0:01:11]} 8. dxc3 {[%emt 0:00:28]} Bc5 {[%emt 0:00:37]} 9. Qe2+ {[%emt 0:
00:44]} Qe7 {[%emt 0:04:27]} 10. Qxe7+ {[%emt 0:03:00]} Kxe7 {[%emt 0:01:05]}
11. O-O {[%emt 0:00:58]} d5 {[%emt 0:01:46]} 12. Re1+ {[%emt 0:05:16]} Be6 {
[%emt 0:02:07]} 13. a4 {[%emt 0:04:22]} c6 {[%emt 0:02:30]} 14. Bd3 {[%emt 0:
00:14]} Kd7 {[%emt 0:01:42]} 15. Bf4 {[%emt 0:01:47]} Rae8 {[%emt 0:04:05]} 16.
b4 {[%emt 0:02:49]} Bd6 {[%emt 0:03:40]} 17. Be3 {[%emt 0:01:10]} a6 {[%emt 0:
00:31]} 18. f4 {[%emt 0:05:01]} g6 {[%emt 0:05:48]} 19. Kf2 {[%emt 0:01:44]}
Bf5 {[%emt 0:03:01]} 20. Bd4 {[%emt 0:02:00]} Rhg8 {[%emt 0:00:45]} 21. Kf3 {
[%emt 0:03:18]} h5 {[%emt 0:14:12]} 22. g3 {[%emt 0:04:09]} Bg4+ {[%emt 0:04:
29]} 23. Kf2 {[%emt 0:03:19]} Bf5 {[%emt 0:03:46]} 24. Kf3 {[%emt 0:00:43]}
Bg4+ {[%emt 0:00:05]} 25. Kf2 {[%emt 0:00:06]} Bf5 {[%emt 0:00:04]} 26. Kf3 {
[%emt 0:00:06]} Bg4+ {[%emt 0:00:04]} 27. Kf2 {[%emt 1:01:48]} 1/2-1/2

[Event "25th European Club Cup Women 2021"]
[Site "Struga"]
[Date "2021.09.23"]
[Round "6.2"]
[White "Muzychuk, Mariya"]
[Black "Heinemann, Josefine"]
[Result "1/2-1/2"]
[ECO "B22"]
[WhiteElo "2540"]
[BlackElo "2292"]
[Annotator "ChessBase"]
[PlyCount "70"]
[EventDate "2021.09.18"]
[EventType "team-tourn"]
[EventCountry "MKD"]
[SourceTitle "playchess.com"]
[Source "ChessBase"]
[SourceQuality "1"]
[TimeControl "40/5400+30:1800+30"]

1. e4 {[%emt 0:00:05]} c5 {[%emt 0:00:07]} 2. c3 {[%emt 0:00:19]} Nf6 {[%emt 0:
00:12]} 3. e5 {[%emt 0:00:13]} Nd5 {[%emt 0:00:05]} 4. Nf3 {[%emt 0:00:20]} d6
{[%emt 0:00:47]} 5. exd6 {[%emt 0:00:49]} Qxd6 {[%emt 0:02:57]} 6. d4 {[%emt 0:
00:31]} cxd4 {[%emt 0:01:23]} 7. Na3 {[%emt 0:00:18]} a6 {[%emt 0:04:55]} 8.
Nc4 {[%emt 0:02:58]} Qd8 {[%emt 0:02:40]} 9. Nxd4 {[%emt 0:03:34]} g6 {[%emt 0:
05:57]} 10. Be2 {[%emt 0:01:09]} Bg7 {[%emt 0:00:31]} 11. Bf3 {[%emt 0:01:03]}
e6 {[%emt 0:11:42]} 12. Bxd5 {[%emt 0:04:16]} exd5 {[%emt 0:01:09]} 13. Qe2+ {
[%emt 0:00:11]} Kf8 {[%emt 0:01:13]} 14. Ne5 {[%emt 0:02:54]} Qe7 {[%emt 0:05:
42]} 15. Bf4 {[%emt 0:01:32]} f6 {[%emt 0:02:39]} 16. Nef3 {[%emt 0:03:13]}
Qxe2+ {[%emt 0:00:47]} 17. Nxe2 {[%emt 0:01:17]} Nc6 {[%emt 0:02:39]} 18. O-O-O
{[%emt 0:01:09]} Be6 {[%emt 0:03:45]} 19. Nfd4 {[%emt 0:00:34]} Nxd4 {[%emt 0:
02:56]} 20. Nxd4 {[%emt 0:00:07]} Bd7 {[%emt 0:00:21]} 21. Nc2 {[%emt 0:05:36]}
Be6 {[%emt 0:07:46]} 22. Nb4 {[%emt 0:02:02]} Rd8 {[%emt 0:00:37]} 23. Rd3 {
[%emt 0:02:08]} Kf7 {[%emt 0:03:33]} 24. Rhd1 {[%emt 0:02:02]} Rd7 {[%emt 0:01:
38]} 25. Be3 {[%emt 0:12:59]} Rhd8 {[%emt 0:05:44]} 26. g3 {[%emt 0:07:29]} d4
{[%emt 0:06:52]} 27. Bxd4 {[%emt 0:08:13]} Bf8 {[%emt 0:01:25]} 28. Bb6 {
[%emt 0:02:46]} Rxd3 {[%emt 0:00:09]} 29. Nxd3 {[%emt 0:00:21]} Rd6 {[%emt 0:
02:39]} 30. Bc7 {[%emt 0:11:59]} Rc6 {[%emt 0:01:11]} 31. Ba5 {[%emt 0:00:40]}
Bxa2 {[%emt 0:01:21]} 32. Bb4 {[%emt 0:00:17]} Bb3 {[%emt 0:02:48]} 33. Re1 {
[%emt 0:00:37]} Bxb4 {[%emt 0:00:34]} 34. Nxb4 {[%emt 0:00:04]} Re6 {[%emt 0:
00:05]} 35. Rxe6 {[%emt 0:02:05]} Kxe6 {[%emt 0:00:52]} 1/2-1/2

[Event "25th European Club Cup Women 2021"]
[Site "Struga"]
[Date "2021.09.23"]
[Round "6.3"]
[White "Dordzhieva, Dinara"]
[Black "Osmak, Iulija"]
[Result "1-0"]
[ECO "D11"]
[WhiteElo "2303"]
[BlackElo "2428"]
[Annotator "NA"]
[PlyCount "73"]
[EventDate "2021.09.18"]
[EventType "team-tourn"]
[EventCountry "MKD"]
[SourceTitle "playchess.com"]
[Source "ChessBase"]
[SourceQuality "1"]
[TimeControl "40/5400+30:1800+30"]

1. d4 {[%emt 0:00:03]} d5 {[%emt 0:00:08]} 2. Nf3 {[%emt 0:00:05]} Nf6 {
[%emt 0:00:11]} 3. c4 {[%emt 0:00:09]} c6 {[%emt 0:00:10]} 4. g3 {[%emt 0:00:
28]} Bg4 {[%emt 0:00:16]} 5. Ne5 {[%emt 0:00:05]} Bf5 {[%emt 0:00:05]} 6. cxd5
{[%emt 0:00:33]} cxd5 {[%emt 0:00:14]} 7. Nc3 {[%emt 0:00:39]} Nc6 {[%emt 0:02:
02]} 8. f3 {[%emt 0:00:06]} g6 {[%emt 0:00:34]} 9. Bg2 {[%emt 0:00:50]} Bg7 {
[%emt 0:00:05]} 10. e3 {[%emt 0:02:39]} O-O {[%emt 0:05:04]} 11. O-O {[%emt 0:
00:40]} Rc8 {[%emt 0:13:47]} 12. g4 {[%emt 0:00:38]} Be6 {[%emt 0:00:46]} 13.
Nd3 {[%emt 0:00:54]} Nd7 {[%emt 0:17:24]} 14. Nf4 {[%emt 0:14:31]} Nb6 {
[%emt 0:05:37]} 15. Nxe6 {[%emt 0:05:04]} fxe6 {[%emt 0:00:03]} 16. f4 {
[%emt 0:00:05]} Kh8 {[%emt 0:02:56]} 17. g5 {[%emt 0:04:18]} Nc4 {[%emt 0:01:
23]} 18. Qg4 {[%emt 0:03:25]} Qd6 {[%emt 0:08:44]} 19. Nd1 {[%emt 0:20:50]} Nb4
{[%emt 0:11:27]} 20. b3 {[%emt 0:15:34]} Nxe3 {[%emt 0:10:41]} 21. Bxe3 {
[%emt 0:04:25]} Nc2 {[%emt 0:00:17]} 22. Rb1 {[%emt 0:01:49]} Nxe3 {[%emt 0:00:
57]} 23. Nxe3 {[%emt 0:00:03]} Bxd4 {[%emt 0:00:05]} 24. Rbe1 {[%emt 0:01:09]}
Rc3 {[%emt 0:02:51]} 25. Rf3 {[%emt 0:00:59]} e5 {[%emt 0:04:49]} 26. fxe5 {
[%emt 0:05:18]} Bxe3+ {[%emt 0:02:41]} 27. Kh1 {[%emt 0:02:40]} Qd8 {[%emt 0:
01:59]} 28. Rfxe3 {[%emt 0:00:06]} d4 {[%emt 0:01:04]} 29. Re4 {[%emt 0:01:04]}
d3 {[%emt 0:00:31]} 30. Rd4 {[%emt 0:00:35]} Qa5 {[%emt 0:01:36]} 31. Qe4 {
[%emt 0:02:33]} Qxa2 {[%emt 0:01:57]} 32. Rxd3 {[%emt 0:00:31]} Qxb3 {[%emt 0:
02:03]} 33. Rd7 {[%emt 0:03:07]} Rc2 {[%emt 0:03:59]} 34. Rxe7 {[%emt 0:02:27]}
Qc3 {[%emt 0:00:31]} 35. Rxb7 {[%emt 0:02:27]} Qd2 {[%emt 0:00:19]} 36. e6 {
[%emt 0:00:43]} Rc1 {[%emt 0:00:28]} 37. Qe5+ {[%emt 0:00:08]} 1-0